bitfinex/quotes_ETHUSD_20251111
["timestamp","ask_amount","ask_price","bid_price","bid_amount"]
[1762827860443,0.4796,3585.2,3585.1,2.78932247]
[1762827860862,0.4796,3585.2,3584.5,0.1983]
[1762827861149,0.001,3585.2,3585.1,2.78932247]
[1762827861314,0.001,3585.2,3585.1,3.28442247]
[1762827861515,0.001,3585.2,3585.1,3.68992647]
[1762827862518,0.001,3585.2,3585.1,4.14352647]
[1762827863049,0.001,3585.2,3585.1,5.40323847]
[1762827866061,0.4602,3585.2,3585.1,2.78932247]
[1762827866365,0.7439,3585.2,3584.4,3.26968055]
[1762827866533,0.6409,3584.5,3584.3,2.78987224]
[1762827866763,0.0195,3584.2,3584.1,4.04981272]
[1762827867127,0.0195,3584.2,3583.8,0.002]
[1762827867373,0.4625,3584.2,3584.1,2.79004743]
[1762827867551,0.7568,3584.2,3584.1,2.79004743]
[1762827867723,0.7568,3584.2,3583.8,0.002]
[1762827867724,0.7568,3584.2,3583.8,1.261712]
[1762827868055,0.2913,3583.9,3583.8,0.002]
[1762827868253,0.4625,3584.2,3584.0,2.79014649]
[1762827868447,0.4625,3584.2,3584.1,2.79010072]
[1762827868944,0.2943,3584.2,3584.1,2.79010072]
[1762827869146,0.1817,3584.5,3584.4,2.7898672]
[1762827869460,0.1817,3584.5,3584.2,2.78996442]
[1762827869642,0.2959,3584.3,3583.8,0.002]
[1762827869963,0.1863,3583.9,3583.8,0.002]
[1762827870366,0.6488,3583.9,3583.8,0.002]
[1762827870740,0.99269868,3583.9,3583.8,0.002]
[1762827871542,3.7829551,3583.9,3583.8,0.002]
[1762827872539,0.99269868,3583.9,3583.8,0.002]
[1762827873283,3.7829551,3583.9,3583.8,0.002]
[1762827873429,0.99269868,3583.9,3583.8,0.002]
[1762827873629,3.7829551,3583.9,3583.8,0.002]
[1762827874321,0.99269868,3583.9,3583.8,0.002]
[1762827874434,3.43905642,3583.9,3583.8,0.002]
[1762827874770,0.6488,3583.9,3583.8,0.002]
[1762827875135,3.43905642,3583.9,3583.8,0.002]
[1762827875334,1.3038,3583.9,3583.8,0.002]
[1762827876153,4.09405642,3583.9,3583.8,0.002]
[1762827876340,4.90844431,3583.9,3583.8,0.002]
[1762827876547,2.11818789,3583.9,3583.8,0.002]
[1762827876737,4.90844431,3583.9,3583.8,0.002]
[1762827877140,2.11818789,3583.9,3583.8,0.002]
[1762827877380,1.3038,3583.9,3583.8,0.002]
[1762827877872,0.0046,3583.9,3583.8,2.79233428]
[1762827878097,0.1817,3584.5,3583.9,2.79025642]
[1762827878269,0.6442,3584.5,3584.0,2.79016996]
[1762827878470,0.6442,3584.5,3584.2,2.79002039]
[1762827878772,0.6442,3584.5,3583.8,0.4798]
[1762827878773,0.1817,3584.5,3584.1,2.79008322]
[1762827878967,0.4625,3584.4,3584.1,2.79009662]
[1762827879174,0.2952,3584.2,3584.1,2.79009662]
[1762827879669,0.2952,3584.2,3584.1,2.79010072]
[1762827881177,0.2952,3584.2,3583.8,0.002]
[1762827881378,0.2952,3584.2,3583.8,2.79232365]
[1762827881674,0.2952,3584.2,3584.1,2.79010072]
[1762827882282,1.259712,3584.7,3584.6,2.78971154]
[1762827882482,0.001,3585.3,3584.2,5.58004574]
[1762827882483,0.4635,3585.2,3584.7,3.26743234]
[1762827882654,0.001,3585.2,3585.1,2.78932247]
[1762827883462,0.001,3585.2,3585.1,3.26712247]
[1762827884180,0.001,3585.2,3585.1,2.78932247]
[1762827884747,0.001,3585.2,3585.1,3.26712247]
[1762827885174,0.001,3585.2,3585.1,2.78932247]
[1762827887050,0.001,3585.2,3585.1,3.26712247]
[1762827887879,0.001,3585.2,3585.1,0.4778]
[1762827888079,0.001,3585.2,3585.1,3.26712247]
[1762827888788,0.2962,3585.2,3585.1,2.78932247]
[1762827890102,0.2962,3585.2,3585.1,3.26712247]
[1762827890103,0.001,3585.2,3585.1,3.26712247]
[1762827890291,0.2979,3585.2,3584.3,0.4739]
[1762827890488,0.001,3585.2,3585.1,2.78932247]
[1762827891001,0.2962,3585.2,3585.1,2.78932247]
[1762827891179,0.001,3585.2,3585.1,2.78932247]
[1762827891379,0.001,3585.2,3585.1,3.26712247]
[1762827892801,0.001,3585.2,3585.1,0.4778]
[1762827893140,0.2962,3585.2,3585.1,2.78932247]
[1762827893869,0.2962,3585.2,3584.4,0.405504]
[1762827894066,0.2962,3585.2,3585.1,2.78932247]
[1762827894504,0.001,3585.2,3585.1,3.46702247]
[1762827894672,0.001,3585.2,3585.1,5.60613847]
[1762827894867,0.001,3585.2,3585.1,8.87536189]
[1762827895709,0.001,3585.2,3585.1,8.87736189]
[1762827896991,0.001,3585.2,3585.1,4.93433847]
[1762827897776,0.001,3585.2,3585.1,5.40593847]
[1762827898182,0.001,3585.2,3585.1,4.52883447]
[1762827898710,0.001,3585.2,3585.1,3.26912247]
[1762827899115,0.001,3585.2,3585.1,3.74072247]
[1762827899624,0.001,3585.2,3585.1,5.40593847]
[1762827899919,0.001,3585.2,3585.1,5.90582052]
[1762827901009,0.001,3585.2,3585.1,5.40593847]
[1762827901318,0.001,3585.2,3585.1,4.93433847]
[1762827901911,0.001,3585.2,3585.1,5.40593847]
[1762827903535,0.001,3585.2,3585.1,5.43383169]
[1762827903687,0.001,3585.2,3585.1,5.93371374]
[1762827904020,0.001,3585.2,3585.1,5.90582052]
[1762827906588,1e-08,3585.6,3585.5,3.66691529]
[1762827906787,1e-08,3585.6,3585.5,8.78206356]
[1762827912746,1e-08,3585.6,3585.5,3.26141129]
[1762827912898,0.74860001,3585.6,3585.5,2.78901129]
[1762827913328,1e-08,3585.6,3585.5,3.26141129]
[1762827913595,0.74670001,3585.6,3585.1,0.002]
[1762827913794,0.47200001,3585.6,3585.1,2.79124571]
[1762827914000,0.2905,3585.5,3585.2,2.78918906]
[1762827914395,0.4564,3585.3,3585.2,2.78918906]
[1762827914796,0.7485,3585.3,3585.1,2.79129881]
[1762827915003,0.7487,3585.2,3585.1,0.002]
[1762827915350,3.53794467,3585.2,3585.1,0.002]
[1762827915497,1.10249447,3585.2,3585.1,0.002]
[1762827915699,0.7487,3585.2,3585.1,0.002]
[1762827916096,0.7467,3585.2,3585.1,2.79132247]
[1762827918817,0.2747,3585.2,3585.1,2.79132247]
[1762827919335,0.7467,3585.2,3585.1,2.79132247]
[1762827920456,0.47200001,3585.6,3585.5,2.78901129]
[1762827920833,0.74870001,3585.6,3585.5,2.78901129]
[1762827922850,0.27670001,3585.6,3585.5,2.78901129]
[1762827923430,1e-08,3585.6,3585.5,3.26141129]
[1762827924278,1e-08,3585.6,3585.5,4.52112329]
[1762827924491,1e-08,3585.6,3585.5,9.82965551]
[1762827924652,1e-08,3585.6,3585.5,9.94127869]
[1762827925049,1e-08,3585.6,3585.5,10.68923173]
[1762827925254,1e-08,3585.6,3585.5,10.270237]
[1762827925477,1e-08,3585.6,3585.5,11.60465067]
[1762827925681,1e-08,3585.6,3585.5,10.604321]
[1762827926590,0.001,3586.0,3585.9,4.95379823]
[1762827926887,0.001,3586.0,3585.9,5.47828523]
[1762827927094,0.001,3586.0,3585.9,5.97578523]
[1762827927390,0.001,3586.0,3585.9,6.74088223]
[1762827928160,0.001,3586.0,3585.9,7.48967943]
[1762827930567,0.001,3586.0,3585.9,18.33715743]
[1762827930766,0.001,3586.4,3586.3,3.19389314]
[1762827930966,0.001,3586.4,3586.3,11.75086125]
[1762827931167,0.001,3586.4,3586.3,12.76862136]
[1762827931389,0.6406,3588.1,3588.0,3.192572]
[1762827931700,0.1817,3588.1,3588.0,3.192572]
[1762827931899,0.4684,3588.1,3588.0,3.192572]
[1762827932102,0.9256,3588.1,3588.0,3.192572]
[1762827932305,0.1919,3589.0,3588.0,3.192572]
[1762827932489,0.4589,3588.6,3588.5,2.7866072]
[1762827932667,0.7425,3588.6,3588.5,2.7866072]
[1762827934207,0.1919,3589.0,3588.9,2.78636908]
[1762827934512,0.4589,3589.4,3589.3,2.78599787]
[1762827935009,0.7496,3589.4,3589.3,2.78599787]
[1762827935673,0.7479,3589.4,3589.3,2.78599787]
[1762827935873,0.2907,3589.4,3589.3,3.19150187]
[1762827936087,0.4572,3589.7,3588.9,3.93154617]
[1762827936088,0.4572,3589.7,3589.6,2.78582571]
[1762827936380,0.1847,3590.0,3589.9,2.78559291]
[1762827936677,0.1847,3590.0,3589.9,3.19109691]
[1762827936982,0.2907,3590.0,3589.9,3.19109691]
[1762827937913,0.7479,3590.0,3589.7,2.78569066]
[1762827938275,0.1893,3589.8,3588.9,0.405504]
[1762827938436,0.1893,3589.8,3589.3,2.78603508]
[1762827938583,0.4589,3589.7,3588.9,0.405504]
[1762827938779,0.4589,3589.7,3589.4,2.78592792]
[1762827939033,0.2861,3589.0,3588.2,3.93154617]
[1762827939200,0.1921,3588.9,3588.8,2.78644672]
[1762827939792,0.651,3588.9,3588.8,2.78644672]
[1762827940193,0.651,3588.9,3588.6,2.78654202]
[1762827940429,0.2834,3588.7,3588.6,2.78660201]
[1762827940781,0.7423,3588.7,3588.0,0.405504]
[1762827941032,0.4589,3588.6,3588.5,2.78667967]
[1762827941335,0.4589,3589.4,3588.5,3.28327967]
[1762827941491,0.4589,3589.7,3588.5,0.4966]
[1762827941690,0.2555312,3589.6,3589.0,2.78623253]
[1762827941890,0.2555312,3589.6,3589.1,2.7862027]
[1762827942123,0.2907,3589.2,3589.1,2.7862027]
[1762827942501,0.7479,3589.2,3589.1,2.7862027]
[1762827943503,0.2907,3589.2,3589.1,2.7862027]
[1762827944418,0.4557,3589.2,3588.7,3.93154617]
[1762827944616,0.1847,3589.8,3588.3,1.259712]
[1762827944617,0.454,3589.1,3588.9,2.78636908]
[1762827944828,0.4589,3589.7,3588.4,2.162716]
[1762827945029,0.4589,3589.7,3589.5,2.78589748]
[1762827945407,0.2907,3589.6,3589.4,2.78597133]
[1762827945605,0.4589,3589.7,3588.7,1.665216]
[1762827945808,0.4589,3589.7,3589.6,2.78582571]
[1762827946014,0.7496,3589.7,3589.5,2.78588378]
[1762827946630,0.4618,3589.6,3589.5,2.78588378]
[1762827947198,0.0029,3589.6,3589.5,2.78588378]
[1762827947394,1.3029,3589.6,3587.5,0.66304231]
[1762827947640,1.3029,3589.6,3585.6,2.941]
[1762827947641,0.5522,3588.1,3586.4,0.002]
[1762827947804,0.0934,3587.6,3586.6,2.78815291]
[1762827948003,0.45556645,3587.6,3586.5,2.78823365]
[1762827948215,0.45556645,3587.6,3586.4,0.002]
[1762827948216,0.99886645,3587.5,3586.4,0.002]
[1762827948516,0.1847,3587.5,3587.0,2.78777768]
[1762827948739,0.1847,3587.5,3586.6,0.405504]
[1762827949035,0.1847,3587.5,3586.8,2.78800044]
[1762827949338,0.1847,3587.5,3586.4,0.002]
[1762827949499,0.1847,3587.5,3587.0,2.78783654]
[1762827949836,0.1847,3587.5,3586.5,3.93154617]
[1762827950134,0.1847,3587.5,3586.4,0.4995]
[1762827950135,0.4589,3587.5,3586.4,0.50188205]
[1762827950443,0.4589,3587.5,3586.8,0.405504]
[1762827950606,0.4589,3587.5,3587.0,2.78783357]
[1762827950802,0.4589,3587.5,3586.9,2.78791659]
[1762827951101,0.0902,3587.1,3587.0,2.78784499]
[1762827951298,0.4589,3587.5,3586.6,0.405504]
[1762827951503,0.4589,3587.5,3586.8,2.78799612]
[1762827951820,0.4589,3587.5,3586.4,0.002]
[1762827952014,0.3246256,3587.4,3586.5,2.78823365]
[1762827952217,0.4589,3587.7,3586.7,0.405504]
[1762827952423,0.4589,3587.7,3587.2,2.78762667]
[1762827952635,0.4589,3587.7,3587.3,2.78759281]
[1762827952849,0.4589,3587.7,3587.4,2.78746772]
[1762827953138,0.4589,3587.7,3587.4,2.78749725]
[1762827953443,0.0902,3587.5,3587.4,2.78749725]
[1762827954827,0.0965,3588.1,3587.4,2.7874646]
[1762827955046,0.0965,3588.1,3587.5,2.78742223]
[1762827955245,0.0965,3588.1,3587.3,2.78761185]
[1762827955246,0.0965,3588.1,3588.0,2.787068]
[1762827955807,0.6419,3588.1,3587.4,2.78749721]
[1762827956056,0.0046,3587.9,3587.4,2.78746699]
[1762827956344,0.0046,3587.9,3587.5,2.78740277]
[1762827956507,0.4715,3587.9,3587.5,2.78740277]
[1762827956703,0.0777,3587.6,3587.5,2.78740277]
[1762827958048,0.0965,3588.1,3587.2,0.405504]
[1762827958239,0.0965,3588.1,3587.9,2.78714204]
[1762827958416,0.5634,3588.1,3587.2,2.7876378]
[1762827958738,0.0008,3587.3,3587.1,2.78776366]
[1762827958937,2.78724729,3587.8,3587.1,2.62013366]
[1762827959139,0.0822,3587.2,3587.0,2.78783523]
[1762827959445,0.276,3586.5,3586.4,0.002]
[1762827959739,0.4631,3587.7,3586.6,2.78814067]
[1762827959740,0.086,3586.8,3586.6,2.78814067]
[1762827959943,2.78762144,3587.3,3586.6,2.78814067]
[1762827960240,0.0822,3586.7,3586.6,2.78814067]
[1762827960929,0.1919,3587.7,3586.6,0.9357]
[1762827961104,0.0965,3588.1,3587.4,2.78748148]
[1762827961105,0.4669,3587.9,3587.4,2.78748148]
[1762827961307,0.0822,3587.5,3587.4,2.78753414]
[1762827962341,0.0822,3587.5,3586.7,0.884104]
[1762827962543,0.0822,3587.5,3586.1,4.11774617]
[1762827962544,0.0046,3587.3,3586.1,4.11774617]
[1762827962716,0.0046,3587.3,3587.0,2.78778266]
[1762827962917,0.0814,3587.1,3586.8,2.78797224]
[1762827963234,0.0814,3587.1,3586.5,0.405504]
[1762827963436,0.0814,3587.1,3587.0,2.78784499]
[1762827963630,0.4639,3587.6,3587.3,2.78758314]
[1762827963944,0.4669,3587.9,3586.8,0.405504]
[1762827964143,0.4669,3587.9,3587.5,2.7874508]
[1762827964443,0.4669,3587.9,3587.6,2.78736816]
[1762827964814,0.0822,3587.7,3587.6,2.78736816]
[1762827965207,0.0965,3588.1,3587.6,2.78736816]
[1762827965550,0.5634,3588.1,3587.7,2.78729434]
[1762827965951,0.0822,3587.8,3587.7,2.78729434]
[1762827966122,0.0822,3587.8,3587.1,0.1862]
[1762827966521,0.0822,3587.8,3587.5,2.78743363]
[1762827966954,0.0008,3587.6,3587.5,2.78743363]
[1762827967323,0.0965,3588.1,3587.6,2.78731026]
[1762827967528,0.4669,3588.0,3587.6,2.78731026]
[1762827967738,0.0822,3587.7,3587.6,2.78731026]
[1762827968729,0.0822,3587.7,3587.6,2.78737874]
[1762827971650,0.0965,3588.1,3587.9,2.78714568]
[1762827971836,0.0965,3588.1,3587.3,2.78761185]
[1762827972061,0.4669,3588.3,3588.0,2.787012]
[1762827972243,0.4669,3588.3,3588.1,2.786963]
[1762827972244,0.6587512,3588.3,3588.1,2.786963]
[1762827972449,0.6587512,3588.3,3587.4,0.4786]
[1762827972450,0.4669,3588.3,3587.4,3.26609641]
[1762827972649,0.4669,3588.3,3588.0,2.7870018]
[1762827972837,0.4669,3588.3,3588.1,2.78695273]
[1762827973040,0.1919,3588.4,3588.1,2.78695273]
[1762827973351,0.1919,3588.4,3587.5,0.4786]
[1762827973352,0.1919,3588.4,3588.2,0.02786912]
[1762827973550,0.1919,3588.4,3587.3,1.259712]
[1762827973551,0.1919,3588.7,3588.4,2.78672757]
[1762827973751,0.3837512,3588.7,3588.4,2.78672757]
[1762827974051,0.0822,3588.5,3588.4,2.78672757]
[1762827974653,0.1919,3588.7,3588.1,0.1862]
[1762827975061,0.4669,3589.0,3588.7,2.78646034]
[1762827975259,0.4669,3589.0,3588.1,3.45176363]
[1762827975417,0.4669,3589.0,3588.7,2.78645656]
[1762827975623,0.4669,3589.0,3588.7,2.78646802]
[1762827975864,0.1847,3589.2,3588.9,2.78634421]
[1762827976059,0.1847,3589.2,3589.1,2.78621381]
[1762827976246,0.001,3589.5,3589.2,2.78607773]
[1762827976557,3.25289952,3589.4,3588.6,2.78654821]
[1762827976723,0.273,3588.7,3588.6,2.78654821]
[1762827978359,0.0822,3588.7,3588.6,2.78654821]
[1762827978575,0.4669,3589.4,3589.0,2.78622663]
[1762827978731,0.001,3589.5,3589.2,2.78606231]
[1762827979379,0.0822,3589.3,3589.2,2.78613618]
[1762827979859,0.0822,3589.3,3589.1,2.78619634]
[1762827980237,0.0046,3589.2,3589.1,2.78619634]
[1762827981123,0.4715,3589.2,3587.8,0.1862]
[1762827981350,2.78642157,3588.9,3588.0,2.78700336]
[1762827981528,2.78642157,3588.9,3587.5,2.78745644]
[1762827981529,3.3981353,3588.9,3588.2,2.78688666]
[1762827981858,0.0054,3588.3,3588.2,2.78688666]
[1762827982258,0.0054,3588.3,3588.2,2.78691265]
[1762827982927,0.6588,3588.8,3588.4,2.78668745]
[1762827983125,0.6588,3588.8,3588.5,2.78661032]
[1762827983344,0.0822,3588.6,3588.5,2.78661032]
[1762827983542,0.0822,3588.6,3587.8,0.405504]
[1762827983870,0.0822,3588.6,3588.4,2.78674837]
[1762827984251,0.0046,3588.5,3588.3,2.78681569]
[1762827984460,0.0046,3588.5,3587.5,0.4786]
[1762827984749,0.0814,3588.2,3588.1,2.78699032]
[1762827984949,0.0814,3588.2,3587.5,0.4786]
[1762827985151,0.0814,3588.2,3587.9,2.78707278]
[1762827985454,0.0814,3588.2,3588.0,2.78704938]
[1762827985845,0.0046,3588.1,3588.0,2.78704938]
[1762827986754,0.4985,3588.1,3587.1,0.1882]
[1762827986958,0.051,3587.9,3587.7,2.78723512]
[1762827987374,0.051,3587.9,3587.5,2.78741907]
[1762827987375,0.051,3587.9,3587.8,2.78722336]
[1762827987694,0.051,3587.9,3587.1,0.66]
[1762827988001,0.051,3587.9,3587.8,2.78722336]
[1762827989066,0.93508874,3588.8,3588.0,2.78699826]
[1762827989067,0.4939,3588.5,3588.0,2.78699826]
[1762827989365,0.0556,3588.1,3587.1,0.002]
[1762827989682,2.78686077,3588.3,3587.6,2.78732984]
[1762827989888,2.78691522,3588.2,3587.5,2.78743137]
[1762827990186,0.32808152,3588.1,3587.1,0.1948]
[1762827990483,0.4939,3588.1,3587.6,2.78732405]
[1762827990682,0.4939,3588.1,3587.7,2.78729264]
[1762827990901,0.4939,3588.1,3587.1,0.1948]
[1762827991180,0.4939,3588.1,3587.7,2.78729392]
[1762827991382,2.78668563,3588.5,3587.2,0.6646]
[1762827991383,2.7867323,3588.5,3587.2,0.6646]
[1762827991595,0.4939,3588.2,3587.4,2.78748303]
[1762827991749,0.0556,3587.3,3587.1,0.002]
[1762827991949,0.0556,3587.3,3587.2,2.78762933]
[1762827992146,0.74318874,3588.4,3587.2,0.4675]
[1762827992349,0.4939,3588.4,3587.4,2.78753414]
[1762827992601,0.1517,3587.5,3587.1,0.002]
[1762827992885,0.056,3587.2,3587.1,2.78971461]
[1762827995193,0.0961,3587.5,3587.1,2.78971461]
[1762827995194,0.0965,3587.9,3587.6,2.78731609]
[1762827995363,6.8279,3588.4,3587.3,0.4675]
[1762827995563,6.8279,3588.4,3587.8,2.78720393]
[1762827995795,6.8279,3588.4,3587.8,2.78716986]
[1762827996094,0.0556,3587.9,3587.6,2.78735255]
[1762827996296,0.0556,3587.9,3587.1,0.002]
[1762827996297,0.0049,3587.7,3587.1,0.002]
[1762827996458,0.0507,3587.2,3587.1,0.002]
[1762827996663,0.0507,3587.2,3587.1,2.78976727]
[1762827996896,0.4939,3587.7,3587.1,0.002]
[1762827997096,0.4939,3587.7,3587.1,2.78973931]
[1762827997292,0.4939,3587.7,3587.1,0.002]
[1762827997494,0.4939,3587.7,3587.3,2.78756272]
[1762827997698,0.4939,3587.7,3587.1,2.78975187]
[1762827997699,0.4939,3587.7,3587.1,0.002]
[1762827997917,0.4939,3587.7,3587.1,2.78974651]
[1762827998268,0.4939,3587.7,3587.4,2.78752033]
[1762827998482,0.4939,3587.7,3587.5,2.78745069]
[1762827998748,0.0965,3587.9,3587.6,2.78737874]
[1762827999014,0.0965,3587.9,3587.1,0.002]
[1762827999215,0.4939,3587.8,3587.4,2.78753242]
[1762827999714,0.001,3587.7,3587.5,2.78743936]
[1762827999917,0.0556,3587.6,3587.5,2.78743936]
[1762828000532,0.001,3587.7,3587.6,2.78737874]
[1762828000710,0.001,3587.7,3587.6,3.25487874]
[1762828001538,0.001,3587.7,3587.6,3.72667874]
[1762828001880,0.001,3587.7,3587.6,4.13218274]
[1762828002551,0.001,3587.7,3587.6,8.76826965]
[1762828002837,0.001,3587.7,3587.6,10.02798165]
[1762828003182,0.001,3587.7,3587.6,6.89789474]
[1762828005622,0.001,3587.7,3587.6,11.0340996]
[1762828005925,0.001,3587.7,3587.6,11.53398165]
[1762828007034,0.001,3587.7,3587.6,12.53340547]
[1762828007234,0.001,3587.7,3587.6,11.53398165]
[1762828007397,0.001,3587.7,3587.6,12.53340547]
[1762828007595,0.001,3587.7,3587.6,16.37739447]
[1762828007924,0.001,3589.3,3589.2,2.78613618]
[1762828008321,0.001,3589.3,3589.2,3.68700154]
[1762828008521,0.001,3589.3,3589.2,4.13094018]
[1762828009306,0.001,3589.3,3589.2,3.72543618]
[1762828009513,0.001,3589.3,3589.2,4.98514818]
[1762828009821,0.001,3589.3,3589.2,5.39065218]
[1762828010809,0.001,3589.3,3589.2,4.91885218]
[1762828011013,0.1377,3589.9,3589.8,2.78567051]
[1762828011515,0.4939,3590.8,3590.3,2.78528256]
[1762828011900,0.7297,3590.4,3590.3,2.78528256]
[1762828012100,0.7297,3590.4,3590.2,2.78534216]
[1762828012325,0.1847,3590.4,3588.3,0.74910927]
[1762828012639,0.1847,3590.4,3587.3,2.00065934]
[1762828012640,0.6231,3588.4,3587.5,0.74910927]
[1762828012840,0.77318697,3590.3,3588.2,1.259712]
[1762828012841,0.74318874,3590.0,3588.2,1.259712]
[1762828013037,1.259712,3589.8,3588.7,2.78646383]
[1762828013198,0.6587,3589.9,3588.8,0.405504]
[1762828013536,0.6587,3589.9,3589.2,2.78609028]
[1762828013721,0.6587,3589.9,3589.5,2.78587431]
[1762828013722,0.1648,3589.9,3589.5,2.78587431]
[1762828013911,0.1648,3589.9,3589.6,2.78580768]
[1762828014113,0.1648,3589.9,3588.9,0.405504]
[1762828014114,0.1648,3589.9,3589.4,2.78598094]
[1762828014437,0.1648,3589.9,3589.7,2.78573748]
[1762828014614,0.4939,3590.2,3589.7,2.78573748]
[1762828014799,0.0555,3589.8,3589.4,0.405504]
[1762828015040,0.0016,3589.5,3588.1,0.1928]
[1762828015203,0.0016,3589.5,3589.1,2.78617244]
[1762828015731,0.0016,3589.5,3589.2,2.78611892]
[1762828015910,0.0016,3589.5,3589.1,0.405504]
[1762828016108,0.1847,3590.4,3589.5,2.78590332]
[1762828016410,0.1847,3590.4,3589.7,2.78571662]
[1762828016932,0.1847,3590.4,3589.8,2.78562818]
[1762828017437,0.1847,3590.4,3589.7,2.78573038]
[1762828017736,0.6565,3590.4,3589.7,2.78572673]
[1762828017904,0.6565,3590.4,3589.6,2.78581223]
[1762828018105,0.6565,3590.4,3589.7,2.78574025]
[1762828018448,0.6575,3590.4,3589.8,2.78565325]
[1762828018746,0.6575,3590.4,3589.5,0.405504]
[1762828018920,3.44274919,3590.4,3589.6,2.7857659]
[1762828019247,3.44274919,3590.4,3589.5,3.19139013]
[1762828019449,0.001,3590.4,3589.5,0.405504]
[1762828019657,0.001,3590.4,3589.9,1.665216]
[1762828019965,0.001,3590.4,3589.1,1.507]
[1762828020177,0.0773,3589.9,3589.3,1.259712]
[1762828020330,0.0773,3589.9,3589.1,0.002]
[1762828020528,0.1639,3589.8,3589.1,0.002]
[1762828020720,0.1639,3589.8,3589.3,2.7860228]
[1762828020944,0.1639,3589.8,3589.1,0.002]
[1762828021148,0.1639,3589.8,3589.6,2.78577687]
[1762828021345,0.1648,3590.1,3589.2,0.405504]
[1762828021559,0.001,3590.4,3589.4,2.78598094]
[1762828021760,0.001,3590.4,3590.0,2.78544114]
[1762828021968,0.001,3590.4,3590.1,2.78542644]
[1762828022171,0.001,3590.4,3590.3,3.84518656]
[1762828022578,0.001,3590.4,3590.3,4.32198656]
[1762828023570,0.001,3590.4,3590.3,4.82186861]
[1762828024137,0.001,3590.4,3590.3,5.58169856]
[1762828024473,0.001,3590.8,3590.7,3.19047628]
[1762828024712,0.001,3590.8,3590.7,9.55347519]
[1762828024879,0.001,3590.8,3590.7,10.03027519]
[1762828025570,0.001,3590.8,3590.7,5.39418828]
[1762828025744,0.001,3590.8,3590.7,4.91738828]
[1762828026156,0.001,3590.8,3590.7,4.45018828]
[1762828026334,0.001,3590.8,3590.7,4.91738828]
[1762828026537,0.001,3590.8,3590.7,5.422038]
[1762828027046,0.001,3590.8,3590.7,5.89407033]
[1762828029097,0.1648,3593.0,3590.9,0.405504]
[1762828029292,0.1648,3593.0,3590.8,1.259712]
[1762828029293,0.4718,3592.9,3591.2,0.405504]
[1762828029493,2.78347971,3592.7,3591.9,2.78404033]
[1762828029807,3.25536335,3592.6,3591.6,0.405504]
[1762828030004,3.12535018,3592.8,3591.9,2.78401239]
[1762828030005,0.4718,3592.5,3591.9,2.78401239]
[1762828030167,0.4718,3592.5,3591.8,2.78410764]
[1762828030371,3.25539647,3592.5,3591.8,2.78410764]
[1762828030624,1.10987375,3592.5,3591.9,2.78403592]
[1762828030974,0.63807375,3592.5,3591.6,0.405504]
[1762828031174,0.4718,3592.5,3592.0,2.78393082]
[1762828031374,0.4718,3592.5,3592.0,2.78391087]
[1762828031613,0.4718,3592.5,3592.1,2.78386841]
[1762828032010,0.4718,3592.5,3591.6,0.405504]
[1762828032319,0.4718,3592.5,3592.1,2.7838327]
[1762828032766,0.0773,3592.2,3592.1,2.7838327]
[1762828033172,0.1648,3593.0,3591.8,4.13620486]
[1762828033522,0.6366,3593.0,3592.4,2.78364718]
[1762828033806,2.97289835,3592.9,3592.1,2.78386289]
[1762828034005,0.4525,3592.2,3591.9,2.78403936]
[1762828034304,2.78342306,3592.7,3591.5,0.405504]
[1762828034506,3.5622989,3592.6,3591.8,2.78410935]
[1762828034701,3.5622989,3592.6,3591.8,2.78411225]
[1762828034899,0.4718,3592.5,3591.9,2.78403071]
[1762828035096,0.4718,3592.5,3591.5,1.665216]
[1762828035299,0.4718,3592.5,3592.0,2.78389939]
[1762828035481,0.0773,3592.1,3592.0,2.78394039]
[1762828035676,0.0773,3592.1,3592.0,2.78396436]
[1762828035877,0.79732321,3592.5,3592.1,2.78383627]
[1762828036084,0.4718,3592.5,3592.1,2.78383627]
[1762828036289,0.0774,3592.2,3592.0,2.78396069]
[1762828036697,2.97290651,3592.9,3591.4,1.736512]
[1762828036698,0.5492,3592.1,3591.4,2.78442947]
[1762828036916,0.4718,3592.1,3591.1,2.096704]
[1762828037083,0.4718,3592.1,3591.6,2.78426904]
[1762828037619,0.0774,3591.7,3591.6,2.78427441]
[1762828038092,0.1738,3591.8,3591.6,2.78427441]
[1762828038295,0.1738,3591.8,3591.7,2.78419689]
[1762828038499,0.4718,3592.4,3591.8,2.78410126]
[1762828038698,3.25547001,3592.4,3591.6,2.78420176]
[1762828038894,3.38773634,3592.3,3591.3,2.78448154]
[1762828039112,0.0774,3591.5,3591.3,2.78449826]
[1762828039297,0.0774,3591.4,3590.7,1.9808]
[1762828039491,0.0774,3591.4,3590.9,2.78476314]
[1762828039686,0.1748,3591.3,3590.8,2.78482669]
[1762828039899,0.1748,3591.3,3591.1,2.78461454]
[1762828040099,0.1748,3591.3,3590.7,1.504]
[1762828040299,0.1748,3591.7,3591.2,0.4672]
[1762828040522,6.8058,3592.2,3591.7,2.7841919]
[1762828040846,0.0774,3591.8,3591.3,2.7844306]
[1762828041147,1.3348509,3592.1,3591.2,0.4768]
[1762828041295,0.4679,3592.1,3591.7,2.78412937]
[1762828041494,0.4679,3592.1,3591.3,0.405504]
[1762828041713,0.001,3592.5,3592.1,2.78383265]
[1762828041886,0.001,3592.5,3592.2,2.78374763]
[1762828042086,0.001,3592.5,3592.3,2.78368616]
[1762828042325,0.4728,3592.5,3591.1,0.4768]
[1762828042506,0.4728,3592.5,3591.2,1.909504]
[1762828042847,0.001,3592.5,3592.3,2.78372034]
[1762828043734,0.0774,3592.4,3592.0,2.78388791]
[1762828043942,2.78369544,3592.4,3591.4,0.405504]
[1762828044142,0.0813,3591.9,3591.3,1.504]
[1762828044482,0.1699,3591.8,3591.6,2.784224]
[1762828044880,0.1699,3591.8,3591.7,2.78419689]
[1762828045379,0.001,3592.5,3591.9,2.78397456]
[1762828045582,0.4553,3592.5,3591.9,2.78397456]